{"text_format":"1","workbook":"xlsx","n_sheets":2,"sheets":["Foglio1","Foglio2"],"not_rendered":{"charts":0,"images":0,"macros":0,"external_links":0,"defined_names":1,"comments":0,"pivot_tables":0},"unopened":[],"bounds":{"document_bytes":16777216,"sheet_cells":100000,"rows_first":2000,"rows_last":500,"rows_between":2000,"halvings":0,"cell_chars":16384,"cell_head_chars":4096},"cells_cut":0,"cells_raw":0,"read":"whole","date_system":"1900"}

{"sheet":"Foglio1","index":0,"n_rows":215,"n_cols":256,"rows_kept":215,"cut":false,"hidden":false,"merged":[]}
[]
[]
[]
["                  CLASSIFICA ASSOLUTA INDIVIDUALE FEMMINILE MASCHILE XXXIII CIRCUITO MASTER OLD STARS 2019"]
[]
[]
[]
[]
[null,"FEMMINILE DAME C5 ","Anno","Società","Temù","S.Cat.SG","S.Cat.G.","S.Cat.S","Comb.","Spiazzi","ApricaG","ApricaG","ApricaS   ","Comb.","Lizzola","Chiesa","Chiesa","Comb.","Temu'","TonaleG","TonaleG.","Temu'SG","Comb.","Bonus","Totale","Class."]
[null,"dal 1948 e precedenti"]
[null,"CROTTI CATERINA",1947,"S.C.Cernobbio",80,100,100,80,80,null,100,100,100,100,null,80,80,80,80,100,100,100,100,30,{"$f":"SUM(E11:X11)","v":1590},1,null,null,null,null,null,null,null,null,null,null,null,null,null,null,null,null,null,null,null,null,null,null,null,null,null,null,null,null,null,null,null,null,null,null,null,null,null,null,null,null,null,null,null,null,null,null,null,null,null,null,null,null,null,null,null,null,null,null,null,null,null,null,null,null,null,null,null,null,null,null,null,null,null,null,null,null,null,null,null,null,null,null,null,null,null,null,null,null,null,null,null,null,null,null,null,null,null,null,null,null,null,null,null,null,null,null,null,null,null,null,null,null,null,null,null,null,null,null,null,null,null,null,null,null,null,null,null,null,null,null,null,null,null,null,null,null,null,null,null,null,null,null,null,null,null,null,null,null,null,null,null,null,null,null,null,null,null,null,null,null,null,null,null,null,null,null,null,null,null,null,null,null,null,null,null,null,null,null,null,null,null,null,null,null,null,null,null,null,null,null,null,null,null,null,null,null,null,null,null,null,null,null,null,null,null,null,null,null,null,null,null,null,null,null,null,null,null,null,null,null,null,null,null,null,null,null,null,null,null,{"$f":"SUM(A11:IU11)","v":5128}]
[null,"MONTINI SILVIA",1047,"S.C.Cernobbio",60,60,60,60,60,80,80,80,45,60,100,50,50,50,60,80,80,60,80,60,1315,2]
[null,"CONSONNI MARILU'",1948,"S.C.Cernobbio",50,50,50,50,50,50,60,50,50,50,60,60,60,60,50,60,50,80,60,60,1110,3]
[null,"FABRETTO ANNA",1941,"S.C.Marinelli",100,80,80,100,100,100,null,null,null,null,null,100,100,100,100,null,null,null,null,10,970,4]
[null,"MAGLIA MARIKA",1947,"S.C.Cernobbio",40,1,45,45,45,null,45,40,60,45,50,45,45,45,40,45,45,45,45,30,801,5]
[null,"PEZZOTTA LUCIANA ",1942,"S.C.La Recastello",45,null,null,null,null,60,50,60,80,80,80,null,null,null,45,50,60,50,50,30,740,6]
[null,"MARTINELLI ELENA",1939,"S.C.La Recastello",null,null,null,null,null,45,40,45,40,40,null,null,null,null,null,null,null,null,null,null,210,7]
[]
[null,"FEMMINILE DAME C4 ","Anno","Società","Temù","S.Cat.SG","S.Cat.G.","S.Cat.S","Comb.","Spiazzi","ApricaG","ApricaG","ApricaS   ","Com.","Lizzola","Chiesa","Chiesa","Comb.","Temu'","TonaleG","TonaleS.","Temu'SG","Comb.","Bonus","Totale","Class."]
[null,"dal 1949 al 1953"]
[null,"CARRARA GRAZIELLA",1950,"S.C.La Recastello",100,100,100,100,100,100,100,100,100,100,100,100,100,100,100,100,100,100,100,60,{"$f":"SUM(E21:X21)","v":1960},1]
[null,"BONZANI MILENA",1949,"S.C.Cernobbio",80,80,80,80,80,80,80,80,80,80,80,80,80,80,80,80,80,80,80,60,{"$f":"SUM(E22:X22)","v":1580},2]
[null,"GAENI ARTEMIDE",1950,"S.C.La Recastello",60,60,60,60,60,60,null,null,null,null,60,60,60,60,60,60,60,1,1,30,{"$f":"SUM(E23:X23)","v":812},3]
[null,"GAMBA JONNE",1950,"S.C.La Recastello",null,null,null,null,null,null,60,60,60,60,50,50,50,50,50,50,50,60,60,30,{"$f":"SUM(E24:X24)","v":740},4]
[]
[null,"FEMMINILE DAME C3 ","Anno","Società","Temù","S.Cat.SG","S.Cat.G.","S.Cat.S","Comb.","Spiazzi","ApricaG","ApricaG","ApricaS   ","Comb.","Lizzola","Chiesa","Chiesa","Comb.","Temu'","TonaleG","TonaleS.","Temu'SG","Comb.","Bonus","Totale","Class."]
[null,"dal 1954 al 1963"]
[null,"FUMAGALLI P.ANGELA",1963,"S.C.La Recastello",100,100,100,100,100,null,100,100,100,100,null,100,100,100,100,100,100,100,100,30,{"$f":"SUM(E28:X28)","v":1730},1]
[null,"MATTARELLI BRUNELLA",1957,"S.C.Ski Mountain",45,60,60,80,60,80,60,60,60,60,100,60,60,60,60,60,60,80,80,60,1305,2]
[null,"BELOTTI P.ANGELA",1956,"S.C.La Recastello",60,80,50,60,50,60,50,50,80,80,80,50,50,50,36,50,50,50,60,60,1156,3]
[null,"DE BATTISTI LORENA",1963,"S.C.Cernobbio",80,null,80,50,80,100,null,80,50,50,null,80,80,80,80,80,80,null,null,30,1080,4]
[null,"CAPPELLA ANNA",1955,"S.C.La Recastello",40,null,null,null,null,null,40,45,45,45,null,36,36,36,32,32,32,40,40,30,529,5]
[null,"CORDANI ELENA",1955,"S.C.La Recastello",null,null,null,null,null,null,null,null,null,null,60,40,40,40,40,40,40,36,45,10,391,6]
[null,"COMINELLI LIVIA",1958,"S.C.La Recastello",50,null,null,null,null,50,45,null,null,null,50,null,null,null,45,45,45,1,1,10,342,7]
[null,"ZUGNONI DANIELA",1955,"S.C.Cernobbio",null,null,null,null,null,null,80,null,null,null,null,45,45,45,50,null,null,60,null,10,335,8]
[null,"MERELLI MARIA LUISA",1958,"S.C.La Recastello",null,null,null,null,null,40,null,null,null,null,45,null,null,null,null,36,36,45,50,10,262,9]
[null,"DONINI DANIELA",1962,"S.C.La Recastello",null,null,null,null,null,45,null,null,null,null,null,null,null,null,null,null,null,null,null,null,45,10]
[]
[null,"FEMMINILE DAME C2 ","Anno","Società","Temù","S.Cat.SG","S.Cat.G.","S.Cat.S","Comb.","Spiazzi","ApricaG","ApricaG","ApricaS   ","Comb.","Lizzola","Chiesa","Chiesa","Comb.","Temu'","TonaleG","TonaleS.","Temu'SG","Comb.","Bonus","Totale","Class."]
[null,"dal 1964 al 1973"]
[null,"BRIVIO ORIETTA",1967,"S.C.Ski Mountain",null,null,null,null,null,null,100,100,100,100,100,60,60,60,100,null,null,null,null,10,{"$f":"SUM(E41:X41)","v":790},1]
[null,"DONINI BRUNA",1965,"S.C.La Recastello",null,null,null,null,null,60,80,80,80,80,null,50,50,50,null,50,50,60,80,10,780,1]
[null,"PERROTTA CARMEN",1967,"S.C.Cernobbio",null,80,100,80,100,null,null,null,null,null,60,45,45,45,null,45,45,null,null,10,655,3]
[null,"MERELLI  DELIA",1964,"S.C.La Recastello",null,null,null,null,null,80,null,null,null,null,80,null,null,null,null,80,60,80,100,10,490,4]
[null,"GIANESINI  GRAZIA",1970,"S.C.Cernobbio",null,null,null,null,null,null,null,null,null,null,null,80,80,80,null,null,null,100,null,null,340,5]
[null,"GAMBA ROBERTA",1971,"S.C.Cernobbio",100,100,1,100,null,null,null,null,null,null,null,null,null,null,null,null,null,null,null,null,301,6]
[null,"COLOMBO MELISSA",1967,"S.C.Ski Mountain",null,null,null,null,null,null,null,null,null,null,null,100,100,100,null,null,null,null,null,null,300,7]
[null,"CASSINA ANTONIETTA",1966,"S.C.Cernobbio",null,null,null,null,null,null,null,null,null,null,null,null,null,null,null,100,100,null,null,null,200,8]
[null,"CASSINA ANNA",1969,"S.C.Cernobbio",null,null,null,null,null,null,null,null,null,null,null,null,null,null,null,60,80,null,null,null,140,9]
[null,"VOLPATO CLAUDIA",1964,"S.C.Ski Mountain",null,null,null,null,null,100,null,null,null,null,null,null,null,null,null,null,null,null,null,null,100,10]
[]
[null,"FEMMINILE DAME C1","Anno","Società","Temù","S.Cat.SG","S.Cat.G.","S.Cat.S","Comb.","Spiazzi","ApricaG","ApricaG","ApricaS   ","Comb.","Lizzola","Chiesa","Chiesa","Comb.","Temu'","TonaleG","TonaleS.","Temu'SG","Comb.","Bonus","Totale","Class."]
[null,"dal 1974 al 1983"]
[]
[]
[null,"SUPER 85","Anno","Società","Temù","S.Cat.SG","S.Cat.G.","S.Cat.S","Comb.","Spiazzi","ApricaG","ApricaG","ApricaS   ","Comb.","Lizzola","Chiesa","Chiesa","Comb-","Temu'","TonaleG","TonaleS.","Temu'SG","Comb.","Bonus","Totale","Class."]
[null,"dal 1933 e precedenti"]
[null,"MORETTI SANDRO",1933,"S.C.La Recastello",100,1,100,null,null,100,100,100,null,null,100,100,100,100,100,100,100,100,100,30,{"$f":"SUM(E58:X58)","v":1431},1]
[null,"CANTU' ROBERTO",1930,"S.C.Cernobbio",null,null,80,null,null,80,null,80,null,null,80,null,null,null,80,80,80,null,null,10,{"$f":"SUM(E59:X59)","v":570},2]
[null,"MAROLI ENRICO",1932,"S.C.Cernobbio",null,null,null,null,null,null,null,null,null,null,null,80,80,80,null,null,null,null,null,null,{"$f":"SUM(E60:X60)","v":240},3]
[]
[null,"SUPER 80","Anno","Società","Temù","S.Cat.SG","S.Cat.G.","S.Cat.S","Comb.","Spiazzi","ApricaG","ApricaG","ApricaS   ","Comb.","Lizzola","Chiesa","Chiesa","Comb.","Temu'","TonaleG","TonaleS.","Temu'SG","Comb.","Bonus","Totale","Class."]
[null,"dal 1934 al 1938"]
[null,"TRAINI SANDRO",1938,"S.C.La Recastello",100,100,100,100,100,100,100,100,100,100,100,100,100,100,100,100,100,100,100,60,{"$f":"SUM(E64:X64)","v":1960},1]
[null,"DE BATTISTI G.CARLO",1935,"S.C.Cernobbio",80,80,80,45,45,80,80,80,80,80,50,80,80,80,80,60,80,80,80,60,1460,2]
[null,"CESATI SANDRO",1936,"S.C.Ski Mountain",60,50,60,50,50,60,50,60,null,null,60,50,50,50,50,80,50,60,60,30,980,3]
[null,"CASSINA ENNIO",1937,"S.C.Cernobbio",null,45,45,80,60,null,null,null,null,null,null,60,60,60,60,50,60,null,null,10,590,4]
[null,"LURASCHI RENZO",1937,"S.C.Ski Mountain",null,60,50,60,80,null,60,50,60,60,null,null,null,null,1,null,null,null,null,10,491,5]
[null,"MORO  MARIO",1934,"S.C.Ski Mountain",50,null,null,null,null,null,null,null,null,null,80,null,null,null,null,null,null,null,null,null,130,6,null,null,null,null,null,null,null,null,null,null,null,null,null,null,null,null,"ARIZZI CARLO","ARIZZI CARLO","ARIZZI CARLO","ARIZZI CARLO","ARIZZI CARLO","ARIZZI CARLO","ARIZZI CARLO","ARIZZI CARLO","ARIZZI CARLO","ARIZZI CARLO","ARIZZI CARLO","ARIZZI CARLO","ARIZZI CARLO","ARIZZI CARLO","ARIZZI CARLO","ARIZZI CARLO","ARIZZI CARLO","ARIZZI CARLO","ARIZZI CARLO","ARIZZI CARLO","ARIZZI CARLO","ARIZZI CARLO","ARIZZI CARLO","ARIZZI CARLO","ARIZZI CARLO","ARIZZI CARLO","ARIZZI CARLO","ARIZZI CARLO","ARIZZI CARLO","ARIZZI CARLO","ARIZZI CARLO","ARIZZI CARLO","ARIZZI CARLO","ARIZZI CARLO","ARIZZI CARLO","ARIZZI CARLO","ARIZZI CARLO","ARIZZI CARLO","ARIZZI CARLO","ARIZZI CARLO","ARIZZI CARLO","ARIZZI CARLO","ARIZZI CARLO","ARIZZI CARLO","ARIZZI CARLO","ARIZZI CARLO","ARIZZI CARLO","ARIZZI CARLO","ARIZZI CARLO","ARIZZI CARLO","ARIZZI CARLO","ARIZZI CARLO","ARIZZI CARLO","ARIZZI CARLO","ARIZZI CARLO","ARIZZI CARLO","ARIZZI CARLO","ARIZZI CARLO","ARIZZI CARLO","ARIZZI CARLO","ARIZZI CARLO","ARIZZI CARLO","ARIZZI CARLO","ARIZZI CARLO","ARIZZI CARLO","ARIZZI CARLO","ARIZZI CARLO","ARIZZI CARLO","ARIZZI CARLO","ARIZZI CARLO","ARIZZI CARLO","ARIZZI CARLO","ARIZZI CARLO","ARIZZI CARLO","ARIZZI CARLO","ARIZZI CARLO","ARIZZI CARLO","ARIZZI CARLO","ARIZZI CARLO","ARIZZI CARLO","ARIZZI CARLO","ARIZZI CARLO","ARIZZI CARLO","ARIZZI CARLO","ARIZZI CARLO","ARIZZI CARLO","ARIZZI CARLO","ARIZZI CARLO","ARIZZI CARLO","ARIZZI CARLO","ARIZZI CARLO","ARIZZI CARLO","ARIZZI CARLO","ARIZZI CARLO","ARIZZI CARLO","ARIZZI CARLO","ARIZZI CARLO","ARIZZI CARLO","ARIZZI CARLO","ARIZZI CARLO","ARIZZI CARLO","ARIZZI CARLO","ARIZZI CARLO","ARIZZI CARLO","ARIZZI CARLO","ARIZZI CARLO","ARIZZI CARLO","ARIZZI CARLO","ARIZZI CARLO","ARIZZI CARLO","ARIZZI CARLO","ARIZZI CARLO","ARIZZI CARLO","ARIZZI CARLO","ARIZZI CARLO","ARIZZI CARLO","ARIZZI CARLO","ARIZZI CARLO","ARIZZI CARLO","ARIZZI CARLO","ARIZZI CARLO","ARIZZI CARLO","ARIZZI CARLO","ARIZZI CARLO","ARIZZI CARLO","ARIZZI CARLO","ARIZZI CARLO","ARIZZI CARLO","ARIZZI CARLO","ARIZZI CARLO","ARIZZI CARLO","ARIZZI CARLO","ARIZZI CARLO","ARIZZI CARLO","ARIZZI CARLO","ARIZZI CARLO","ARIZZI CARLO","ARIZZI CARLO","ARIZZI CARLO","ARIZZI CARLO","ARIZZI CARLO","ARIZZI CARLO","ARIZZI CARLO","ARIZZI CARLO","ARIZZI CARLO","ARIZZI CARLO","ARIZZI CARLO","ARIZZI CARLO","ARIZZI CARLO","ARIZZI CARLO","ARIZZI CARLO","ARIZZI CARLO","ARIZZI CARLO","ARIZZI CARLO","ARIZZI CARLO","ARIZZI CARLO","ARIZZI CARLO","ARIZZI CARLO","ARIZZI CARLO","ARIZZI CARLO","ARIZZI CARLO","ARIZZI CARLO","ARIZZI CARLO","ARIZZI CARLO","ARIZZI CARLO","ARIZZI CARLO","ARIZZI CARLO","ARIZZI CARLO","ARIZZI CARLO","ARIZZI CARLO","ARIZZI CARLO","ARIZZI CARLO","ARIZZI CARLO","ARIZZI CARLO","ARIZZI CARLO","ARIZZI CARLO","ARIZZI CARLO","ARIZZI CARLO","ARIZZI CARLO","ARIZZI CARLO","ARIZZI CARLO","ARIZZI CARLO","ARIZZI CARLO","ARIZZI CARLO","ARIZZI CARLO","ARIZZI CARLO","ARIZZI CARLO","ARIZZI CARLO","ARIZZI CARLO","ARIZZI CARLO","ARIZZI CARLO","ARIZZI CARLO","ARIZZI CARLO","ARIZZI CARLO","ARIZZI CARLO","ARIZZI CARLO","ARIZZI CARLO","ARIZZI CARLO","ARIZZI CARLO","ARIZZI CARLO","ARIZZI CARLO","ARIZZI CARLO","ARIZZI CARLO","ARIZZI CARLO","ARIZZI CARLO","ARIZZI CARLO","ARIZZI CARLO","ARIZZI CARLO","ARIZZI CARLO","ARIZZI CARLO","ARIZZI CARLO","ARIZZI CARLO","ARIZZI CARLO","ARIZZI CARLO"]
[]
[null,"SUPER 75","Anno","Società","Temù","S.Cat.SG","S.Cat.G.","S.Cat.S","Comb.","Spiazzi","ApricaG","ApricaG","ApricaS   ","Comb.","Lizzola","Chiesa","Chiesa","Comb.","Temu'","TonaleG","TonaleS.","Temu'SG","Comb.","Bonus","Totale","Class."]
[null,"dal 1939 al 1943"]
[null,"CATTANEO ACHILLE",1943,"S.C.La Recastello",1,100,80,80,80,null,1,80,80,80,null,40,100,60,80,100,100,100,100,30,{"$f":"SUM(E73:X73)","v":1292},1]
[null,"PELIZZARI GIANGIACOMO",1943,"S.C.Cernobbio",50,50,40,60,45,80,60,45,60,60,100,80,80,100,60,80,50,60,60,60,1280,2]
[null,"VALLE' G.ANTONIO",1939,"S.C.Ski Mountain",60,60,60,45,60,40,80,60,50,50,80,60,60,80,50,60,60,80,80,60,1235,3]
[null,"BAVO NATALINO",1943,"S.C.Cernobbio",100,80,100,100,100,null,null,100,100,100,null,100,1,1,100,null,null,null,null,10,992,4]
[null,"ARIZZI CARLO",1943,"S.C.Ski Mountain",45,45,45,36,40,45,50,40,45,40,60,50,1,1,45,50,45,50,50,60,843,5]
[null,"SPLUGA ENZO",1942,"S.C.La Recastello",40,40,36,40,32,60,45,36,40,36,50,null,null,null,40,45,40,45,45,30,700,6]
[null,"GILARDONI FRANCESCO",1940,"S.C.Cernobbio",32,29,29,32,29,null,null,null,null,null,40,36,45,45,36,36,36,40,40,30,535,7]
[null,"ORSI ALESSANDRO ",1939,"S.C.La Recastello",80,32,50,50,50,100,100,50,1,1,null,null,null,null,null,null,null,null,null,10,524,8]
[null,"GATTI FRANCO",1943,"S.C.Ski Mountain",36,36,32,null,null,50,40,32,null,null,45,45,50,50,null,null,null,null,null,10,426,9]
[null,"VENEZIANI GIUSEPPE",1940,"S.C.La Recastello",null,null,null,null,null,null,null,null,null,null,null,null,null,null,null,40,80,null,null,null,120,10]
[]
[null,"SUPER 70","Anno","Società","Temù","S.Cat.SG","S.Cat.G.","S.Cat.S","Comb.","Spiazzi","ApricaG","ApricaG","ApricaS   ","Comb.","Lizzola","Chiesa","Chiesa","Comb.","Temu'","TonaleG","TonaleS.","Temu'SG","Comb.","Bonus","Totale","Class."]
[null,"dal 1944 al 1948"]
[null,"BAVO GIUSEPPE",1946,"S.C.Cernobbio",100,100,100,100,100,null,null,100,100,100,null,100,100,100,null,100,100,100,100,30,{"$f":"SUM(E86:X86)","v":1530},1]
[null,"FERRI GIUSEPPE",1944,"S.C.La Recastello",40,50,50,50,50,60,1,80,1,1,80,60,80,60,80,80,60,80,80,60,1103,2]
[null,"LOCATELLI EFREM",1948,"G.S.A. Marinelli ",32,1,40,40,40,50,80,50,60,60,32,32,36,36,40,50,50,40,50,60,879,3]
[null,"NOVELLI NANDO",1947,"S.C.La Recastello",50,36,36,1,1,80,100,45,26,26,50,45,45,45,60,36,36,45,45,60,868,4]
[null,"GUSMINI RENATO",1947,"S.C.La Recastello",80,null,null,null,null,100,null,null,null,null,100,50,50,50,100,60,80,50,60,10,790,5]
[null,"GARBELLINI LINO",1947,"S.C.Cernobbio",60,80,80,45,60,null,null,null,null,null,60,80,60,80,50,null,null,60,null,10,725,6]
[null,"GALBUSERA DIEGO",1945,"S.C.Cernobbio",45,45,45,60,45,null,null,60,80,80,45,40,40,40,null,null,null,null,null,10,635,7]
[null,"GHILARDI ANGELO",1947,"G.S.A.Marinelli",24,29,24,32,36,36,50,32,50,50,29,null,null,null,29,29,29,29,32,30,570,8]
[null,"FERRARI DARIO",1947,"S.C.La Recastello",18,18,15,18,20,29,29,20,32,40,24,26,26,26,24,24,24,22,26,60,521,9]
[null,"MELZI CARLO",1945,"S.C.La Recastello",36,24,26,null,null,null,36,29,null,null,null,24,29,29,45,40,45,32,40,30,465,10]
[null,"DOTTI SERGIO",1946,"S.C.Cernobbio",12,20,14,20,24,24,24,16,36,32,18,18,18,18,18,18,20,18,24,60,452,11]
[null,"AGAZZI LUCIO",1947,"G.S.A.Marinelli",29,32,29,null,null,40,40,36,null,null,36,null,null,null,36,32,32,36,36,30,444,12]
[null,"MONTI PRIMO",1947,"S.C.Cernobbio",13,15,13,22,22,22,22,15,29,29,22,16,15,16,20,22,22,16,22,60,433,13]
[null,"BOMBARDIERI ENZO",1945,"S.C.Cernobbio",null,null,20,36,32,null,45,26,45,45,null,29,32,32,26,null,null,26,null,10,404,14]
[null,"BELOTTI NELLO",1946,"S.C.La Recastello",16,22,22,null,null,32,32,24,null,null,26,null,null,null,22,26,26,20,29,30,327,15]
[null,"FIENGO PIETRO",1946,"S.C.La Recastello",26,40,32,null,null,45,60,40,null,null,null,null,null,null,32,null,null,null,null,10,285,16]
[null,"BORIERO GIANNI",1946,"S.C.Cernobbio",14,26,18,29,29,null,26,22,null,null,null,20,24,20,1,null,null,24,null,30,283,17]
[]
[null,"SUPER 70","Anno","Società","Temù","S.Cat.SG","S.Cat.G.","S.Cat.S","Comb.","Spiazzi","ApricaG","ApricaG","ApricaS   ","Comb.","Lizzola","Chiesa","Chiesa","Comb.","Temu'","TonaleG","TonaleS.","Temu'SG","Comb.","Bonus","Totale","Class."]
[null,"dal 1944 al 1948"]
[null,"TASCHINI CARLO",1946,"S.C.La Recastello",null,60,60,80,80,null,null,null,null,null,null,null,null,null,null,null,null,null,null,null,280,18]
[null,"CASSINA EZIO",1947,"S.C.Cernobbio",null,16,12,26,18,26,null,null,null,null,20,null,null,null,null,20,18,15,20,10,201,19]
[null,"RUFFINONI ALDO",1945,"S.C.La Recastello",null,null,null,null,null,null,null,null,null,null,40,36,16,22,null,null,null,null,null,null,114,20]
[null,"PASQUINA GIACOMO",1946,"S.C.Cernobbio",20,null,null,null,null,null,null,18,null,null,null,22,22,24,null,null,null,null,null,null,106,21]
[null,"SACCHI GINO",1947,"S.C.Cernobbio",null,null,null,null,null,null,null,14,40,36,16,null,null,null,null,null,null,null,null,null,106,22]
[null,"FRACCHIA MAURIZIO",1948,"S.C.Cernobbio",22,null,16,24,26,null,null,null,null,null,null,null,null,null,null,null,null,null,null,null,88,23]
[null,"VALSECCHI G.FRANCO",1945,"S.C.La Recastello",null,null,null,null,null,null,null,null,null,null,null,1,20,1,null,null,null,null,null,null,22,24]
[null,"ZATTI AGOSTINO                                  1946  ",1946,"S.C.La Recastello",null,null,null,null,null,null,null,null,null,null,null,null,null,null,null,45,40,null,null,null,{"$f":"SUM(E113:X113)","v":85},25]
[null,"MODESTI ATTILIO",1946,"S.C.Ski Mountain",15,null,null,null,null,null,null,null,null,null,null,null,null,null,null,null,null,null,null,null,15,26]
[]
[null,"SUPER  65","Anno","Società","Temù","S.Cat.SG","S.Cat.G.","S.Cat.S","Comb.","Spiazzi","ApricaG","ApricaG","ApricaS   ","Comb.","Lizzola","Chiesa","Chiesa","Comb,","Temu'","TonaleG","TonaleS.","Temu'SG","Comb.","Bonus","Totale","Class."]
[null,"dal 1949 al 1953"]
[null,"CURTONI GIORGIO",1951,"S.C.Cernobbio",100,100,100,100,100,null,100,100,100,100,null,100,80,100,100,100,100,100,100,30,{"$f":"SUM(E118:X118)","v":1710},1]
[null,"ZUGNONI LIVIO",1951,"S.C.Cernobbio",80,80,80,1,null,null,80,80,80,80,null,80,100,80,80,60,50,80,80,30,1201,2]
[null,"GAMBA BRUNO",1953,"S.C.La Recastello",60,45,60,60,80,100,1,45,40,40,80,45,45,45,60,45,60,40,50,60,1061,3]
[null,"ROSSI MARCELLO",1951,"S.C.Ski Mountain",45,60,45,45,45,50,45,36,36,36,60,40,45,40,50,50,45,60,60,60,953,4]
[null,"BERERA LINO",1949,"S.C.La Recastello",40,32,40,80,60,40,36,40,50,45,50,50,50,50,45,40,40,45,45,60,938,5]
[null,"FERRI CARLO",1949,"S.C.Cernobbio",50,50,50,50,50,45,60,60,60,60,100,60,60,60,null,null,null,null,null,30,845,6]
[null,"ZERBONI FAUSTO",1953,"S.C.Cernobbio",36,36,32,36,40,null,32,29,32,32,45,36,36,36,40,null,null,50,null,30,578,7]
[null,"MAGNI GIGI",1950,"S.C.La Recastello",29,29,26,40,36,29,20,11,24,18,36,22,22,22,29,22,26,22,29,60,552,8]
[null,"BARONCHELLI G.MARIA",1952,"S.C.La Recastello",32,26,29,null,null,36,29,24,null,null,null,32,32,32,36,32,29,36,40,30,475,9]
[null,"AMBROSIONI G.BATTISTA",1952,"S.C.Ski Mountain",16,22,24,32,32,18,24,22,29,29,32,null,null,null,22,24,24,24,32,30,436,10]
[null,"CARRARA G.BATTISTA",1950,"G.S.A. Marinelli ",14,16,16,24,24,20,13,16,20,22,14,20,20,20,15,20,20,16,26,60,416,11]
[null,"TESTA CLAUDIO",1949,"S.C.La Recastello",13,14,14,18,18,16,12,12,18,20,15,14,14,14,16,18,18,18,24,60,366,12]
[null,"MORETTI MARCO",1949,"S.C.Ski Mountain",null,40,36,null,null,80,50,50,45,50,null,null,null,null,null,null,null,null,null,10,361,13]
[null,"MODANESI ROMEO",1951,"S.C.Ski Mountain",24,null,null,null,null,32,40,null,null,null,40,null,null,null,32,29,32,26,36,10,301,14]
[null,"GOTTI GIORDANO",1953,"S.C.Cernobbio",18,24,18,20,22,null,18,18,null,null,18,26,24,24,20,null,null,20,null,30,300,15]
[null,"CONFALONIERI NORBERTO",1952,"S.C.Ski Mountain",20,20,22,29,29,null,16,null,null,null,26,29,29,29,24,null,null,null,null,10,283,16]
[null,"BIELLA GIUSEPPE",1950,"S.C.Ski Mountain",null,15,15,22,20,null,14,14,1,1,13,15,18,15,14,16,16,1,1,30,241,17]
[null,"MARTINI SERGIO",1950,"S.C.Cernobbio",15,18,20,26,26,1,15,15,null,null,20,16,16,16,null,null,null,null,null,30,234,18]
[null,"MANZOTTI MARCO",1952,"S.C.Ski Mountain",12,null,null,null,null,22,null,13,22,24,16,18,15,18,18,null,null,29,null,10,217,19]
[null,"GIUDES SILVANO",1951,"S.C.Cernobbio",null,null,null,null,null,null,null,26,null,null,22,24,26,26,26,null,null,32,null,10,192,20]
[null,"MORESCHI GIOVANNI",1951,"S.C.La Recastello",null,null,null,null,null,26,22,20,26,26,null,null,null,null,null,26,22,null,null,10,178,21]
[null,"STEFANI UGO",1951,"S.C.La Recastello",null,null,null,null,null,null,null,null,null,null,null,null,null,null,null,80,80,null,null,null,160,22]
[null,"GRASSI GIOVANNI",1949,"S.C.La Recastello",null,null,null,null,null,60,26,32,16,16,null,null,null,null,null,null,null,null,null,null,150,23]
[null,"CEMMI FEDERICO",1951,"S.C.La Recastello",26,null,null,null,null,null,null,null,null,null,null,null,null,null,null,36,36,null,null,null,98,24]
[null,"DONATI FANCESCO",1952,"S.C.Ski Mountain",null,null,null,null,null,24,null,null,null,null,null,null,null,null,null,16,null,null,null,null,40,25]
[null,"ALBRICI BORTOLO",1953,"S.C.La Recastello",null,null,null,null,null,null,null,null,null,null,29,null,null,null,null,null,null,null,null,null,29,26]
[null,"CAVAGNA GIOVANNI",1953,"S.C.La Recastello",null,null,null,null,null,null,null,null,null,null,24,null,null,null,null,null,null,null,null,null,24,27]
[null,"GIUDICI GINO",1952,"S.C.Cernobbio",22,1,null,null,null,null,null,null,null,null,null,null,null,null,null,null,null,null,null,null,23,28]
[]
[null,"Super 60","Anno","Societa'","Temù","S.Cat.SG","S.Cat.G.","S.Cat.S","Comb.","Spiazzi","ApricaG","ApricaG","ApricaS   ","Comb.","Lizzola","Chiesa","Chiesa","Comb.","Temu'","TonaleG","TonaleS.","Temu'SG","Comb.","Bonus","Totale","Class."]
[null,"dal 1954 al 1958"]
[null,"CARRARA ADRIANO",1957,"S.C.La Recastello",1,80,80,100,100,100,100,100,100,100,100,80,50,60,100,80,100,45,60,60,{"$f":"SUM(E149:X149)","v":1596},1]
[null,"BERGAMELLI G.PIETRO",1954,"S.C.Ski Mountain",80,50,50,40,60,80,60,50,80,60,60,50,36,45,80,100,60,50,80,60,1231,2]
[null,"GANDOSSI DANILO",1956,"S.C.La Recastello",50,60,40,50,45,60,80,80,50,50,50,45,60,50,50,50,50,80,50,60,1110,3]
[null,"BORDAZZI SERGIO",1958,"S.C.La Recastello",32,32,26,45,32,45,36,36,45,36,36,36,40,36,29,36,40,32,36,60,746,4]
[null,"SABBADINI MARIO",1955,"S.C.La Recastello",null,null,null,null,null,null,50,60,60,80,80,null,null,null,60,60,80,100,100,10,740,5]
[null,"BALZI IVANO",1958,"S.C.La Recastello",40,40,36,32,36,null,45,45,36,40,null,26,32,32,40,45,45,36,40,30,676,6]
[null,"VAINI GUIDO",1958,"S.C.Ski Mountain",29,29,24,24,26,40,32,29,29,29,40,32,26,26,32,40,36,40,45,60,668,7]
[null,"CORBELLA PIERO",1954,"S.C.La Recastello",45,45,45,36,40,50,40,40,40,45,null,40,45,40,45,null,null,null,null,30,626,8]
[null,"ARRIGONI RUGGERO",1956,"S.C.La Recastello",24,24,16,22,20,1,26,24,26,26,24,20,16,20,22,26,24,29,29,60,479,9]
[null,"SALVADORI FEDERINO",1955,"S.C.Cernobbio",null,22,22,26,24,null,29,26,32,32,26,22,20,22,26,29,29,26,32,30,475,10]
[null,"LOMBARDI CARMINE",1955,"S.C.La Recastello",null,20,18,16,18,36,24,22,24,24,29,18,18,18,24,24,26,22,26,30,437,11]
[null,"GALBUSERA GUIDO",1958,"S.C.Cernobbio",60,null,null,null,null,null,null,null,null,null,null,80,80,80,null,null,null,60,null,null,360,12]
[null,"MAXENTI VINCENZO",1957,"S.C.Cernobbio",26,15,14,18,15,null,20,18,22,22,null,15,15,15,20,20,22,24,24,30,355,13]
[null,"BALZARETTI ANGELO",1955,"S.C.Cernobbio",36,null,32,29,29,null,null,32,null,null,45,null,null,null,36,32,32,null,null,10,313,14]
[null,"DONATI ADRIANO",1958,"S.C.Ski Mountain",null,null,null,null,null,null,null,null,null,null,null,100,100,100,null,null,null,null,null,null,300,15]
[null,"ORIO SERGIO",1958,"S.C.Ski Mountain",100,100,60,null,null,null,null,null,null,null,null,null,null,null,null,1,1,null,null,10,272,16]
[null,"GIORDANO MICHELE",1955,"S.C.Cernobbio",22,18,15,15,16,null,22,20,null,null,20,16,22,16,18,null,null,20,null,30,270,17]
[null,"COMPAGNONI CANDIDO",1955,"S.C.Cernobbio",null,null,100,80,80,null,null,null,null,null,null,null,null,null,null,null,null,null,null,null,260,18]
[null,"PELIZZARI VITTORIO",1954,"S.C.Cernobbio",null,36,29,60,50,null,null,null,null,null,null,null,null,null,null,null,null,null,null,null,175,19]
[null,"PEROSINO RENATO",1954,"S.C.La Recastello",20,16,13,null,null,32,1,null,null,null,18,null,null,null,16,22,1,null,null,10,149,20]
[null,"ARLATI FRANCO",1955,"S.C.Ski Mountain",null,26,20,20,22,null,null,null,null,null,null,null,null,null,null,null,null,null,null,null,88,21]
[null,"MUNARETT0 MAURIZIO",1955,"S.C.Ski Mountain",null,null,null,null,null,null,null,null,null,null,null,29,29,29,null,null,null,null,null,null,87,22]
[null,"ALVARETA RENZO",1954,"S.C.Cernobbio",null,null,null,null,null,null,null,null,null,null,null,24,24,24,null,null,null,null,null,null,72,23]
[null,"CASANOVA GIUSEPPE",1955,"S.C.La Recastello",null,null,null,null,null,null,null,null,null,null,null,null,null,null,15,18,20,null,null,null,53,24]
[null,"TENCI FERMO",1956,"S.C.La Recastello",null,null,null,null,null,null,1,null,null,null,32,null,null,null,null,null,null,null,null,null,33,25]
[null,"BORRA CLEMENTE",1956,"S.C.Cernobbio",null,null,null,null,null,null,null,null,null,null,22,null,null,null,null,null,null,null,null,null,22,26]
[null,"GAVARINI LUIGI",1958,"S.C.Cernobbio",null,null,null,null,null,null,null,null,null,null,16,null,null,null,null,null,null,null,null,null,16,27]
[null,"RUSCONI ANTONIO",1958,"S.C.Cernobbio",null,null,null,null,null,null,null,null,null,null,15,null,null,null,null,null,null,null,null,null,15,28]
[null,"GIROLA ROSSANO",1958,"S.C.Cernobbio",null,null,null,null,null,null,null,null,null,null,null,null,null,null,14,null,null,null,null,null,14,29]
[]
[null,"Super 55","Anno","Società","Temù","S.Cat.SG","S.Cat.G.","S.Cat.S","Comb.","Spiazzi","ApricaG","ApricaG","ApricaS   ","Comb.","Lizzola","Chiesa","Chiesa","Comb.","Temu'","TonaleG","TonaleS.","Temu'SG","Comb.","Bonus","Totale","Class."]
[null,"dal 1959 al 1963"]
[null,"FAZZINI AMOS",1960,"S.C.Cernobbio",100,80,100,null,null,null,80,null,null,null,80,100,80,100,100,100,80,100,100,30,{"$f":"SUM(E181:X181)","v":1230},1]
[null,"SALVADORI MARCO",1963,"S.C.Cernobbio",50,100,80,40,60,null,60,80,100,100,50,45,40,45,80,60,50,45,60,30,1175,2]
[null,"GALAS MARIANO",1959,"S.C.Cernobbio",80,60,50,100,100,null,100,100,1,1,100,80,100,80,null,1,100,80,1,30,1164,3]
[null,"MIGLIORATI SERGIO",1959,"S.C.La Recastello",60,45,45,80,80,40,29,40,80,50,60,50,60,60,null,80,60,60,80,30,1089,4]
[null,"TOMBINI P.ANGELO",1960,"S.C.Ski Mountain",40,32,36,50,50,100,40,50,50,80,40,32,45,40,60,50,45,50,50,60,1000,5]
[null,"ZUCCHELLI MARCO",1959,"S.C.La Recastello",36,36,26,60,45,60,45,null,null,null,36,40,32,36,50,45,40,40,45,30,702,6]
[null,"STEFANO CARMINI",1961,"S.C.Ski Mountain",null,null,null,null,null,null,36,45,60,60,32,null,null,null,45,40,36,null,null,10,364,7]
[null,"POMONI FAUSTO",1961,"S.C.Cernobbio",45,40,40,null,null,null,50,60,null,null,null,29,null,null,null,null,null,null,null,10,274,8]
[null,"ACQUISTAPACE ALDO",1961,"S.C.Cernobbio",null,null,null,null,null,null,null,36,40,45,null,24,24,26,40,null,null,null,null,10,245,9]
[null,"COLOMBO STEFANO",1961,"S.C.Ski Mountain",1,null,null,null,null,45,null,1,1,null,null,1,26,1,null,36,32,32,40,10,226,10]
[null,"CANCLINI DAVIDE",1963,"S.C.La Recastello",null,null,29,null,null,null,32,1,45,null,24,26,29,29,null,null,null,null,null,10,225,11]
[null,"BANFI LUCA",1959,"S.C.Ski Mountain",null,29,24,45,40,null,null,null,null,null,26,null,null,null,null,null,null,null,null,null,164,12]
[null,"SALVETTI ROMEO",1963,"S.C.Ski Mountain",null,null,null,null,null,null,null,null,null,null,null,60,50,50,null,null,null,null,null,null,160,13]
[null,"TAGLIAFERRO MAURIZIO",1959,"S.C.Cernobbio",1,null,null,null,null,null,null,null,null,null,null,36,36,32,null,null,null,36,null,null,141,14]
[null,"MANGINI BATTISTA",1961,"S.C.La Recastello",null,null,null,null,null,80,null,null,null,null,45,null,null,null,null,null,null,null,null,null,125,15]
[null,"COMPAGNONI FIORENZO",1963,"S.C.Cernobbio",null,50,60,null,null,null,null,null,null,null,null,null,null,null,null,null,null,null,null,null,110,16]
[null,"CATTANEO FABRIZIO",1960,"S.C.La Recastello",null,null,null,null,null,50,null,null,null,null,29,null,null,null,null,null,null,null,null,null,79,17]
[null,"PINI FRANCESCO",1961,"S.C.Ski Mountain",32,null,null,null,null,null,null,null,null,null,null,null,null,null,null,null,null,null,null,null,32,18]
[null,"POROTTO MARCO",1962,"S.C.La Recastello",null,null,32,null,null,null,null,null,null,null,null,null,null,null,null,null,null,null,null,null,32,19]
[null,"ROGATE GIUSEPPE",1960,"S.C.Ski Mountain",null,null,null,null,null,null,null,1,null,null,null,null,null,null,null,null,null,null,null,null,1,20]
[]
[null,"Super 50","Anno","Società","Temù","S.Cat.SG","S.Cat.G.","S.Cat.S","Comb.","Spiazzi","ApricaG","ApricaG","ApricaS   ","Com.","Lizzola","Chiesa","Chiesa","Comb.","Temu'","TonaleG","TonaleS.","Temu'SG","Comb.","Bonus","Totale","Class."]
[null,"dal 1964 al 1969"]
[null,"COLOMBO STEFANO",1966,"S.C.Ski Mountain",80,null,100,100,100,100,null,80,80,80,100,100,100,100,100,100,100,null,null,30,{"$f":"SUM(E204:X204)","v":1450},1]
[null,"CANTONI DAVIDE",1967,"S.C.Cernobbio",null,80,80,80,80,null,null,60,60,60,null,null,null,null,null,null,null,null,null,10,510,2]
[null,"PLONA MARCO",1966,"S.C.Cernobbio",null,100,null,null,null,null,100,100,100,100,null,null,null,null,null,null,null,null,null,null,500,3]
[null,"MULAZZI GIANNI",1966,"S.C.Ski Mountain",100,null,null,null,null,null,null,null,null,null,null,80,80,80,null,null,null,null,null,null,340,4]
[null,"MAGGIONI ACHILLE",1965,"S.C.Ski Mountain",null,null,null,null,null,null,null,null,null,null,null,60,60,60,80,null,null,null,null,null,260,5]
[null,"FUGAZZA ENNIO",1966,"S.C.La Recastello",null,null,null,null,null,60,null,null,null,null,null,45,45,45,null,null,null,null,null,null,195,6]
[null,"GALLI IVANO",1965,"S.C.Ski Mountain",null,null,null,null,null,null,null,null,null,null,null,50,50,50,null,null,null,null,null,null,150,7]
[null,"MANGINI G.PIETRO",1964,"S.C.La Recastello",null,null,null,null,null,50,null,null,null,null,80,null,null,null,null,null,null,null,null,null,130,8]
[null,"MARTINELLI CLAUDIO",1968,"G.S.A.Marinelli",null,null,null,null,null,80,null,null,null,null,null,null,null,null,null,null,null,null,null,null,80,9]
[null,"ZUGNONI MASSIMO",1968,"S.C.Cernobbio",60,null,null,null,null,null,null,null,null,null,null,null,null,null,null,null,null,null,null,null,60,10]
[null,"CAMPOLO ANTONINO",1968,"S.C.Ski Mountain",50,null,null,null,null,null,null,null,null,null,null,null,null,null,null,null,null,null,null,null,50,11]
[null,"ZAPPA LUCA",1967,"S.C.Ski Mountain",null,null,null,null,null,null,null,null,null,null,null,40,1,1,null,null,null,null,null,null,42,12]

{"sheet":"Foglio2","index":1,"n_rows":0,"n_cols":0,"rows_kept":0,"cut":false,"hidden":false,"merged":[]}